bitfinex/quotes_ETHUSD_20230113
["timestamp","ask_amount","ask_price","bid_price","bid_amount"]
[1673623898493,41.78867272,1420.7,1420.6,8.3e-07]
[1673623898710,20.74989272,1420.7,1420.6,8.3e-07]
[1673623898948,34.74989272,1420.7,1420.6,8.3e-07]
[1673623899687,38.96089272,1420.7,1420.6,8.3e-07]
[1673623899901,31.74989272,1420.7,1420.6,8.3e-07]
[1673623900532,22.848214,1420.7,1420.6,8.3e-07]
[1673623900740,29.886994,1420.7,1420.6,8.3e-07]
[1673623901347,34.0006664,1420.7,1420.6,8.3e-07]
[1673623901704,25.848214,1420.7,1420.3,0.8383667]
[1673623901919,14.0,1420.5,1420.3,0.8383667]
[1673623902233,3.67233272,1420.5,1420.3,0.8383667]
[1673623902399,10.64618272,1420.5,1420.3,0.8383667]
[1673623902610,0.066,1420.5,1420.3,0.92220337]
[1673623902960,14.0,1420.7,1420.4,2.082]
[1673623902961,21.10487,1420.7,1420.4,2.082]
[1673623903189,28.14401,1420.7,1420.4,2.082]
[1673623903495,17.68491272,1420.6,1420.4,2.082]
[1673623903843,3.60633272,1420.5,1420.4,2.082]
[1673623904046,17.68587272,1420.5,1420.3,0.9043667]
[1673623904221,17.75187272,1420.5,1420.3,0.8383667]
[1673623904439,3.60633272,1420.4,1420.3,0.8383667]
[1673623904633,17.68687272,1420.4,1420.3,0.8383667]
[1673623904992,3.67233272,1420.4,1420.3,0.8383667]
[1673623905217,3.60633272,1420.4,1420.3,0.8383667]
[1673623905367,0.066,1420.5,1420.3,0.8383667]
[1673623905733,3.60633272,1420.5,1420.3,0.82901817]
[1673623905890,10.64619272,1420.5,1420.3,0.82901817]
[1673623906096,24.71219272,1420.5,1420.3,0.82901817]
[1673623906311,31.75205272,1420.5,1420.3,0.81967882]
[1673623906936,17.68687272,1420.4,1420.3,0.81967882]
[1673623907143,10.71260272,1420.4,1420.3,0.81967882]
[1673623907622,3.67233272,1420.4,1420.3,0.81967882]
[1673623907837,14.066,1420.5,1420.3,0.76967882]
[1673623907984,17.67233272,1420.5,1420.3,0.8466467]
[1673623908722,14.066,1420.5,1420.3,0.8466467]
[1673623909076,15.63300001,1420.8,1420.5,2.5]
[1673623909401,19.30533273,1420.8,1420.6,2.067]
[1673623909627,15.69900001,1420.8,1420.6,2.067]
[1673623909774,15.69900001,1420.8,1420.6,2.5237]
[1673623910657,19.30533273,1420.8,1420.6,2.067]
[1673623910872,22.73740001,1420.8,1420.6,2.067]
[1673623911085,15.69900001,1420.8,1420.6,2.067]
[1673623912189,19.30533273,1420.8,1420.4,3.2532]
[1673623912447,17.68389272,1420.7,1420.4,2.075]
[1673623912622,10.71111272,1420.7,1420.3,0.9126467]
[1673623912835,0.066,1420.7,1420.3,0.8466467]
[1673623913043,15.69900001,1420.8,1420.4,2.32882607]
[1673623913265,15.69900001,1420.8,1420.5,0.23288261]
[1673623913991,29.77563001,1420.8,1420.5,0.23288261]
[1673623914238,0.05,1420.7,1420.5,2.73288261]
[1673623914412,15.69900001,1420.8,1420.5,0.23288261]
[1673623914768,26.34364273,1420.8,1420.5,0.23288261]
[1673623914976,26.34364273,1420.8,1420.5,0.24308461]
[1673623915297,33.38192273,1420.8,1420.5,4e-08]
[1673623915656,33.38192273,1420.8,1420.4,2.082]
[1673623916108,17.68437272,1420.7,1420.3,6.1096467]
[1673623916321,17.75037272,1420.7,1420.3,0.9126467]
[1673623916492,36.32063799,1420.7,1420.3,0.8466467]
[1673623916705,35.79253799,1420.7,1420.3,0.8466467]
[1673623917185,3.60633272,1420.6,1420.4,0.24682607]
[1673623917501,10.64610272,1420.5,1420.4,0.24682607]
[1673623917809,10.71210272,1420.5,1420.4,0.24682607]
[1673623918174,17.75187272,1420.5,1420.4,0.24682607]
[1673623918443,31.75187272,1420.5,1420.4,2.607e-05]
[1673623918655,34.98779099,1420.5,1420.4,2.607e-05]
[1673623918806,24.71210272,1420.5,1420.3,0.7603753]
[1673623919225,21.10577,1420.5,1420.3,0.7603753]
[1673623919488,28.14554,1420.5,1420.3,0.7603753]
[1673623919698,31.75187272,1420.5,1420.3,0.7603753]
[1673623920072,4.13453272,1420.4,1420.3,0.7603753]
[1673623920282,24.67307999,1420.4,1420.3,0.7603753]
[1673623920544,22.6456626,1420.4,1420.3,0.7603753]
[1673623920916,15.6053926,1420.4,1420.3,0.7603753]
[1673623921129,29.6859326,1420.4,1420.3,0.7603753]
[1673623921810,22.6456626,1420.4,1420.3,0.7603753]
[1673623921995,3.5942,1420.4,1420.3,0.7603753]
[1673623922328,3.0,1420.4,1420.3,0.7603753]
[1673623922501,25.12787272,1420.4,1420.3,0.7603753]
[1673623922716,25.12787272,1420.4,1420.1,0.05652708]
[1673623922717,32.76234272,1420.4,1420.1,0.05652708]
[1673623923046,49.98237272,1420.2,1420.1,0.05652708]
[1673623923258,43.76531272,1420.2,1420.1,0.05652708]
[1673623923443,46.76531272,1420.2,1420.1,0.05652708]
[1673623924319,46.76531272,1420.2,1420.1,7.08e-06]
[1673623924533,46.76531272,1420.2,1419.9,0.02768241]
[1673623924693,42.169,1420.0,1419.9,0.02768241]
[1673623924907,46.59963272,1420.0,1419.9,0.02768241]
[1673623925120,49.59963272,1420.0,1419.9,0.02768241]
[1673623925321,49.59963272,1420.0,1419.8,0.05871531]
[1673623925322,53.81063272,1420.0,1419.8,0.05871531]
[1673623925530,28.16121272,1419.9,1419.8,5.31e-06]
[1673623925795,31.0303408,1419.9,1419.8,5.31e-06]
[1673623926371,31.0303408,1419.9,1419.6,2.72e-06]
[1673623926372,32.38596,1419.7,1419.6,2.72e-06]
[1673623926687,56.77688872,1419.7,1419.6,2.72e-06]
[1673623926898,56.77688872,1419.7,1419.1,2.09150124]
[1673623927161,41.80355272,1419.7,1419.3,2.067]
[1673623927317,15.167,1419.5,1419.3,2.067]
[1673623927523,2.5,1419.3,1419.1,0.5947]
[1673623927751,31.79121272,1419.2,1419.0,20.03414375]
[1673623927964,22.34389399,1419.2,1419.0,20.03414375]
[1673623928212,17.0,1419.1,1419.0,0.066]
[1673623928375,31.15942,1419.1,1418.8,0.88770265]
[1673623928807,31.15942,1419.1,1418.8,0.86867484]
[1673623929265,14.478,1419.0,1418.8,0.86867484]
[1673623929574,14.09542,1418.9,1418.8,0.86867484]
[1673623929731,3.38401534,1418.9,1418.8,0.86867484]
[1673623929943,1.418,1418.9,1418.8,0.95554232]
[1673623931045,1.418,1418.9,1418.8,0.86867484]
[1673623931415,12.07204272,1418.9,1418.8,0.86867484]
[1673623931623,15.484,1418.9,1418.8,0.86867484]
[1673623932091,8.53171,1418.9,1418.8,0.86867484]
[1673623932278,0.066,1418.9,1418.8,0.86867484]
[1673623932623,14.544,1419.0,1418.9,1.40258966]
[1673623932831,11.22319924,1419.0,1418.9,8.97899966]
[1673623933020,0.06,1419.5,1419.0,12.12089997]
[1673623933235,14.5284,1419.7,1419.3,2.082]
[1673623933451,14.066,1419.7,1419.3,2.082]
[1673623933629,14.066,1419.7,1419.4,0.2082]
[1673623934032,21.10983,1419.7,1419.4,0.2082]
[1673623934201,21.10983,1419.7,1419.3,2.082]
[1673623934202,0.5285,1419.6,1419.3,2.082]
[1673623934512,32.89306,1419.7,1419.1,2.076]
[1673623934722,28.68197,1419.7,1419.1,2.076]
[1673623934880,21.63814,1419.7,1419.1,2.076]
[1673623935089,21.63814,1419.7,1419.2,0.2076]
[1673623935090,0.5944,1419.7,1419.2,0.2076]
[1673623935331,4.24,1419.5,1419.2,0.2076]
[1673623935549,4.24,1419.5,1419.4,2.5]
[1673623935761,0.066,1419.6,1419.5,2.5]
[1673623935933,7.04399,1419.7,1419.5,2.26967927]
[1673623936293,14.0,1419.6,1419.3,0.066]
[1673623936519,14.0,1419.6,1418.9,0.09158966]
[1673623936520,21.66269,1419.5,1419.4,19.96814375]
[1673623936665,7.63923,1419.5,1419.4,20.03414375]
[1673623936875,14.68396,1419.5,1419.4,20.03414375]
[1673623937101,20.973456,1419.5,1419.4,0.066]
[1673623937343,29.02078872,1419.5,1419.0,0.066]
[1673623937560,7.04671,1419.1,1419.0,0.002]
[1673623937822,0.5947,1419.1,1418.9,0.09158966]
[1673623937985,0.5946,1419.2,1418.9,2.16058966]
[1673623938302,3.0,1419.4,1418.9,2.16058966]
[1673623938303,0.5286,1419.3,1418.9,2.50661611]
[1673623938675,3.60633272,1419.2,1418.9,2.50661611]
[1673623938884,7.64041,1419.3,1418.9,0.43761611]
[1673623939102,11.24674272,1419.3,1418.9,0.43761611]
[1673623939341,3.83633272,1419.2,1418.9,0.09158966]
[1673623939555,7.04623,1419.2,1418.9,0.09158966]
[1673623939767,0.066,1419.2,1418.9,0.09158966]
[1673623940088,10.57394,1419.4,1418.9,0.09158966]
[1673623940248,14.24627272,1419.4,1418.9,0.09158966]
[1673623940456,14.24627272,1419.4,1419.0,0.00263826]
[1673623940710,3.5945,1419.4,1419.0,0.00263826]
[1673623940929,3.0,1419.4,1419.0,0.00263826]
[1673623941513,2.311,1419.3,1419.0,2.50263826]
[1673623941776,2.311,1419.3,1419.0,0.00263826]
[1673623942085,20.53743272,1419.3,1419.0,0.00263826]
[1673623942301,24.36377599,1419.3,1419.0,0.00263826]
[1673623942457,3.60633272,1419.2,1419.0,0.00263826]
[1673623942820,10.65271272,1419.2,1419.0,0.00263826]
[1673623942983,10.71871272,1419.2,1419.0,0.00263826]
[1673623943434,0.066,1419.2,1419.0,0.00263826]
[1673623943607,2.8396,1419.3,1419.0,0.22026105]
[1673623944133,2.8396,1419.3,1419.0,0.00263826]
[1673623945026,2.311,1419.3,1419.1,2.069]
[1673623945192,0.066,1419.5,1419.3,0.48573687]
[1673623945405,7.04425,1419.6,1419.3,0.48573687]
[1673623945640,7.04425,1419.6,1419.3,9.61339687]
[1673623945641,0.5945,1419.6,1419.3,9.61339687]
[1673623945873,0.5284,1419.7,1419.4,0.96133969]
[1673623946184,7.57123,1419.9,1419.5,2.075]
[1673623946399,0.5944,1419.9,1419.5,2.075]
[1673623946707,7.04384,1419.7,1419.4,0.066]
[1673623946898,7.63824,1419.7,1419.3,5.08773687]
[1673623947107,10.71617272,1419.7,1419.3,3.62351056]
[1673623947323,10.71617272,1419.7,1419.3,3.55751056]
[1673623947720,0.066,1419.7,1419.3,3.55751056]
[1673623947939,21.63768,1419.8,1419.3,3.55751056]
[1673623948181,21.63768,1419.8,1419.3,0.48573687]
[1673623948182,20.69388272,1419.7,1419.3,0.48573687]
[1673623948395,19.22383272,1419.6,1419.3,0.48573687]
[1673623948718,28.09046,1419.4,1419.3,3.687e-05]
[1673623948863,32.29129272,1419.4,1418.9,20.11643803]
[1673623949072,7.13493272,1419.3,1418.9,0.14829428]
[1673623949304,10.65265272,1419.2,1418.9,0.09158966]
[1673623949549,3.67233272,1419.2,1418.9,0.09158966]
[1673623949738,3.60633272,1419.2,1418.9,0.09158966]
[1673623949924,3.5946,1419.3,1418.9,0.09158966]
[1673623950135,3.5286,1419.3,1418.9,2.06107757]
[1673623950379,0.5286,1419.3,1419.0,4.566]
[1673623950764,3.60633272,1419.2,1419.0,2.066]
[1673623950976,0.066,1419.3,1419.0,2.066]
[1673623951343,3.60633272,1419.2,1418.9,0.09158966]
[1673623951643,25.18140272,1419.2,1418.9,0.09158966]
[1673623951861,29.48129499,1419.2,1418.9,0.09158966]
[1673623952030,1.141,1419.1,1418.9,0.09158966]
[1673623952241,8.18797,1419.1,1418.9,0.09158966]
[1673623952571,18.90727272,1419.1,1418.9,0.09158966]
[1673623952748,11.86030272,1419.1,1418.9,0.09158966]
[1673623952957,11.86030272,1419.1,1418.9,0.08225741]
[1673623953167,1.207,1419.1,1418.9,0.08225741]
[1673623953412,1.141,1419.1,1418.9,0.08225741]
[1673623953600,1.141,1419.1,1418.9,0.38495063]
[1673623954053,1.141,1419.1,1418.9,2.88495063]
[1673623954382,1.141,1419.1,1419.0,2.075]
[1673623954594,1.141,1419.1,1419.0,1.575]
[1673623954751,0.066,1419.4,1419.1,10.45805312]
[1673623954954,49.43355,1419.7,1419.1,10.51475774]
[1673623955171,7.04527,1419.4,1419.1,0.96813774]
[1673623957077,31.02150199,1419.2,1419.1,0.91143312]
[1673623957965,3.5946,1419.2,1419.1,0.91143312]
[1673623958121,0.5286,1419.2,1419.1,0.91143312]
[1673623958335,11.18115272,1419.2,1419.1,0.91143312]
[1673623958592,0.5946,1419.2,1419.1,0.91143312]
[1673623958802,0.5286,1419.2,1419.1,0.91143312]
[1673623959122,3.0,1419.3,1419.1,1.00257643]
[1673623959484,0.066,1419.4,1419.2,2.082]
[1673623959700,0.066,1419.6,1419.2,2.082]
[1673623959923,72.76906,1419.7,1419.2,9.12818]
[1673623960172,3.60633272,1419.6,1419.2,0.05670462]
[1673623960344,24.65116272,1419.5,1419.1,0.91143312]
[1673623960560,2.5,1419.3,1419.1,0.91143312]
[1673623960770,7.04622,1419.2,1419.1,0.91143312]
[1673623960979,7.11222,1419.2,1419.1,0.91143312]
[1673623961504,18.29337272,1419.2,1419.1,0.91143312]
[1673623961706,25.47728699,1419.2,1419.1,0.91143312]
[1673623962341,46.31808601,1419.2,1419.1,0.91143312]
[1673623962551,50.52908601,1419.2,1418.9,0.08225741]
[1673623962880,28.09442,1419.0,1418.9,0.08225741]
[1673623963091,32.29545272,1419.0,1418.9,0.08225741]
[1673623963307,38.72930008,1419.0,1418.9,0.08225741]
[1673623963543,38.95930008,1419.0,1418.9,0.08225741]
[1673623963688,31.68209008,1419.0,1418.9,0.08225741]
[1673623963904,38.72930008,1419.0,1418.9,0.08225741]
[1673623964113,43.17030008,1419.0,1418.9,0.08225741]
[1673623965694,43.17030008,1419.0,1418.8,0.86867484]
[1673623965938,25.77748273,1418.9,1418.8,0.86867484]
[1673623966149,25.84348273,1418.9,1418.8,0.86867484]
[1673623966948,37.10219273,1418.9,1418.8,0.86867484]
[1673623967419,17.69012,1418.9,1418.8,0.86867484]
[1673623967739,27.72004272,1418.9,1418.8,0.86867484]
[1673623968066,20.67233272,1418.9,1418.8,0.86867484]
[1673623968275,34.76775272,1418.9,1418.8,0.86867484]
[1673623968493,39.50745272,1418.9,1418.8,0.86867484]
[1673623968641,44.93067299,1418.9,1418.8,0.86867484]
[1673623968845,40.94967299,1418.9,1418.8,0.86867484]
[1673623969537,28.24874272,1418.9,1418.8,0.86867484]
[1673623969849,17.066,1418.9,1418.8,0.86867484]
[1673623970066,0.066,1418.9,1418.8,0.86867484]
[1673623970221,0.63,1419.0,1418.8,0.86867484]
[1673623970431,0.63,1419.0,1418.8,7.91687484]
[1673623970640,0.63,1419.0,1418.9,3.29168748]
[1673623970850,0.63,1419.0,1418.9,17.38710748]
[1673623971124,0.63,1419.0,1418.9,10.3961021]
[1673623971338,0.63,1419.0,1418.9,0.8483921]
[1673623971637,0.63,1419.0,1418.8,0.86867484]
[1673623972683,14.72452,1419.0,1418.8,0.86867484]
[1673623972841,3.60633272,1418.9,1418.8,0.86867484]
[1673623973051,31.93175272,1418.9,1418.8,0.86867484]
[1673623973267,39.96791899,1418.9,1418.8,0.84996158]
[1673623973537,39.73791899,1418.9,1418.8,0.84996158]
[1673623973688,39.96791899,1418.9,1418.8,0.84996158]
[1673623974108,32.92020899,1418.9,1418.8,0.84996158]
[1673623974355,32.69020899,1418.9,1418.8,0.84996158]
[1673623974689,21.20103272,1418.9,1418.8,0.84996158]
[1673623975281,35.29645272,1418.9,1418.8,0.84996158]
[1673623975488,28.24874272,1418.9,1418.8,0.84996158]
[1673623975705,35.29645272,1418.9,1418.8,0.84996158]
[1673623976019,3.066,1418.9,1418.8,0.84996158]
[1673623976236,0.696,1419.0,1418.8,0.84996158]
[1673623976572,28.22355324,1419.0,1418.8,0.84996158]
[1673623976780,7.53571611,1419.0,1418.8,0.84996158]
[1673623977108,3.252,1419.0,1418.8,0.84996158]
[1673623977321,0.186,1419.0,1418.8,0.84996158]
[1673623977623,14.28042,1419.0,1418.8,0.84996158]
[1673623977838,7.82791,1419.0,1418.8,0.84996158]
[1673623978061,10.90554272,1419.0,1418.8,0.84996158]
[1673623978209,3.85833272,1419.0,1418.8,0.84996158]
[1673623978566,3.79233272,1419.0,1418.8,0.84996158]
[1673623978782,17.60633272,1418.9,1418.8,0.84996158]
[1673623978998,38.81546272,1418.9,1418.8,0.84996158]
[1673623979151,41.81546272,1418.9,1418.8,0.84996158]
[1673623979365,42.34416272,1418.9,1418.8,0.84996158]
[1673623980697,42.57416272,1418.9,1418.8,0.84996158]
[1673623980842,48.70973842,1418.9,1418.8,0.84996158]
[1673623981263,41.66202842,1418.9,1418.8,0.84996158]
[1673623981517,34.61431842,1418.9,1418.8,0.84996158]
[1673623981697,21.20103272,1418.9,1418.8,0.84996158]
[1673623981911,28.24874272,1418.9,1418.8,0.84996158]
[1673623982207,6.67233272,1418.9,1418.8,0.84996158]
[1673623982465,3.066,1418.9,1418.8,0.84996158]
[1673623982691,3.0,1418.9,1418.8,0.84996158]
[1673623983013,38.14313,1418.9,1418.8,0.84996158]
[1673623983160,31.78662,1418.9,1418.8,0.84996158]
[1673623983365,24.73891,1418.9,1418.8,0.84996158]
[1673623983575,17.6912,1418.9,1418.8,0.84996158]
[1673623983824,17.066,1418.9,1418.8,0.84996158]
[1673623984045,0.066,1418.9,1418.8,0.84996158]
[1673623984218,14.066,1419.2,1418.9,0.11159418]
[1673623984430,31.76516272,1419.2,1418.9,0.11159418]
[1673623984852,24.71856272,1419.2,1418.9,0.11159418]
[1673623985610,14.066,1419.2,1418.9,0.45774976]
[1673623985797,14.066,1419.2,1418.9,9.57420976]
[1673623985798,0.066,1419.2,1418.9,9.57420976]
[1673623985993,22.0693,1419.3,1419.0,2.5]
[1673623986356,0.066,1419.3,1419.0,9.54684]
[1673623986576,0.5286,1419.3,1419.0,11.73929557]
[1673623986744,0.066,1419.4,1419.0,18.78650557]
[1673623986937,0.5285,1419.5,1419.1,1.74804056]
[1673623987401,0.5285,1419.5,1419.2,7.04612]
[1673623987577,21.0084,1419.6,1419.2,7.10282462]
[1673623987784,24.61473272,1419.6,1419.2,11.01776108]
[1673623988210,3.0,1419.5,1419.2,18.06398108]
[1673623988644,3.5945,1419.6,1419.2,18.06398108]
[1673623988875,14.066,1419.7,1419.3,2.5]
[1673623989085,14.066,1419.7,1419.4,7.04513]
[1673623989086,0.066,1419.7,1419.4,7.04513]
[1673623989256,0.13434314,1419.8,1419.5,7.749133]
[1673623989471,24.78400586,1419.8,1419.5,0.05670462]
[1673623989701,17.80667586,1419.8,1419.3,12.07205462]
[1673623990582,3.0,1419.7,1419.3,12.07227462]
[1673623990874,14.20034314,1419.8,1419.3,31.85204734]
[1673623991093,14.20034314,1419.8,1419.3,34.02956683]
[1673623991251,14.20034314,1419.8,1419.4,10.44782668]
[1673623991457,3.60633272,1419.7,1419.4,0.05670462]
[1673623991703,3.60633272,1419.7,1419.3,0.05670462]
[1673623991934,3.60633272,1419.7,1419.2,27.57999108]
[1673623992143,3.60633272,1419.7,1419.2,20.53378108]
[1673623993486,10.65013272,1419.7,1419.2,20.53378108]
[1673623993705,3.67233272,1419.7,1419.4,21.13539]
[1673623993876,17.20034314,1419.8,1419.5,2.5]
[1673623994239,3.0,1419.7,1419.5,9.54463]
[1673623994520,3.0,1419.7,1419.5,11.97049408]
[1673623994687,3.0,1419.7,1419.5,19.01522408]
[1673623994860,3.0,1419.7,1419.5,2.42586408]
[1673623995069,3.0,1419.7,1419.4,9.60161462]
[1673623995260,3.0,1419.7,1419.4,16.64652462]
[1673623995938,3.0,1419.7,1419.4,7.10161462]
[1673623996268,6.60633272,1419.7,1419.4,0.05670462]
[1673623996574,23.54500031,1419.7,1419.3,0.05670462]
[1673623996792,23.54500031,1419.7,1419.1,20.02484837]
[1673623996793,7.04473,1419.5,1419.1,20.02484837]
[1673623996980,14.15546,1419.5,1419.1,0.05670462]
[1673623997156,14.15546,1419.5,1419.0,11.68951462]
[1673623997365,10.71706272,1419.5,1419.0,14.19468616]
[1673623997617,3.0,1419.4,1419.0,0.05670462]
[1673623997792,7.04582,1419.3,1418.9,4.79052658]
[1673623998000,10.71815272,1419.3,1418.9,2.29107516]
[1673623998272,14.19450299,1419.3,1418.9,2.29107516]
[1673623998439,14.19450299,1419.3,1418.9,0.11159418]
[1673623999208,14.72310299,1419.3,1418.9,0.11159418]
[1673623999401,11.24675272,1419.3,1418.9,0.11159418]
[1673623999613,4.20093272,1419.3,1418.9,7.15919418]
[1673623999815,0.5286,1419.3,1418.9,16.7636088]
[1673624000007,24.63985,1419.4,1418.9,16.7636088]
[1673624000220,3.5945,1419.4,1419.0,2.5]
[1673624000427,17.0,1419.4,1419.1,0.25]
[1673624000644,3.066,1419.4,1419.0,16.59406]
[1673624000852,3.0,1419.4,1419.1,7.04667]
[1673624001088,3.0,1419.4,1419.1,7.10337462]
[1673624001321,3.0,1419.4,1419.1,9.47311808]
[1673624001529,3.0,1419.4,1419.1,9.45439882]
[1673624001833,3.0,1419.4,1419.1,0.05670462]
[1673624002081,3.0,1419.4,1419.0,9.60363462]
[1673624002367,3.0,1419.4,1419.0,16.65058462]
[1673624002523,3.0,1419.4,1419.0,23.69779462]
[1673624003200,3.5945,1419.5,1419.0,23.69779462]
[1673624003372,3.5945,1419.5,1419.2,21.13842]
[1673624003373,3.0,1419.5,1419.2,21.13842]
[1673624003561,0.066,1419.6,1419.2,21.19512462]
[1673624003775,0.5284,1419.7,1419.4,21.13547]
[1673624003988,0.5284,1419.7,1419.4,14.14696462]
[1673624004249,7.57214,1419.7,1419.4,0.05670462]
[1673624004442,10.65084272,1419.6,1419.3,0.05670462]
[1673624004775,10.71684272,1419.6,1419.2,7.04614]
[1673624004933,10.71684272,1419.6,1419.2,0.05670462]
[1673624004934,17.76135272,1419.6,1419.2,0.05670462]
[1673624005144,17.76135272,1419.6,1419.1,26.15457408]
[1673624005349,10.71684272,1419.6,1419.1,26.15457408]
[1673624005776,3.67233272,1419.6,1419.3,2.5]
[1673624005999,3.60633272,1419.6,1419.4,7.04523]
[1673624006221,1.53887431,1419.7,1419.4,7.10193462]
[1673624006566,3.0,1419.7,1419.4,0.05670462]
[1673624006733,17.08772,1419.7,1419.3,0.05670462]
[1673624006931,24.19758,1419.7,1419.2,14.82011203]
[1673624007138,24.19758,1419.7,1419.3,1.22634074]
[1673624007353,3.066,1419.7,1419.3,8.27205074]
[1673624007685,3.0,1419.7,1419.4,3.32720507]
[1673624007911,3.0,1419.7,1419.4,24.46240507]
[1673624008132,3.0,1419.7,1419.4,24.51910969]
[1673624009407,0.20034314,1419.8,1419.4,24.51910969]
[1673624009559,3.13434314,1419.8,1419.6,7.04423]
[1673624009770,3.13434314,1419.8,1419.6,7.10093462]
[1673624009981,3.13434314,1419.8,1419.6,14.14516462]
[1673624010244,0.13434314,1419.8,1419.6,14.14516462]
[1673624010414,0.13434314,1419.8,1419.6,7.10093462]
[1673624010755,0.13434314,1419.8,1419.6,8.76058918]
[1673624011042,0.13634314,1419.8,1419.6,8.75858918]
[1673624011244,0.13434314,1419.8,1419.6,8.26058918]
[1673624011463,0.13434314,1419.8,1419.6,15.36881918]
[1673624011869,0.13434314,1419.8,1419.6,8.32458918]
[1673624012085,0.13434314,1419.8,1419.6,0.066]
[1673624012331,0.13434314,1419.8,1419.4,9.12713]
[1673624012518,0.13434314,1419.8,1419.4,16.23836]
[1673624012739,0.13434314,1419.8,1419.4,18.73836]
[1673624012955,0.13434314,1419.8,1419.4,21.316736]
[1673624013163,0.13434314,1419.8,1419.4,28.361966]
[1673624013448,0.13434314,1419.8,1419.4,21.316736]
[1673624013784,4.13473272,1419.7,1419.4,0.066]
[1673624013954,4.13473272,1419.7,1419.1,10.26498397]
[1673624013955,21.13269,1419.6,1419.1,10.26498397]
[1673624014160,21.19869,1419.6,1419.1,0.066]
[1673624014521,21.19869,1419.6,1419.0,20.03414375]
[1673624014522,3.60633272,1419.5,1419.0,20.03414375]
[1673624014688,24.74274272,1419.4,1419.0,20.03414375]
[1673624015035,17.76327272,1419.4,1419.0,0.066]
[1673624015258,1.77632727,1419.3,1418.9,0.11159418]
[1673624015407,8.82211727,1419.3,1418.9,0.11159418]
[1673624015619,8.88811727,1419.3,1418.9,0.11159418]
[1673624015879,5.44865999,1419.3,1418.9,0.11159418]
[1673624016071,10.04649,1419.2,1418.9,0.11159418]
[1673624016248,7.477524,1419.2,1418.9,0.09287248]
[1673624017091,3.066,1419.2,1418.9,8.18187667]
[1673624017404,0.066,1419.3,1418.9,15.29558667]
[1673624017614,17.5945,1419.4,1419.0,4.24817196]
[1673624017821,17.066,1419.4,1419.0,4.45437586]
[1673624018402,3.066,1419.4,1419.0,23.19617277]
[1673624018559,3.066,1419.5,1419.1,1.74805124]
[1673624018769,4.75945,1419.5,1419.0,12.60863005]
[1673624019027,3.0,1419.5,1419.1,1.74803993]
[1673624019352,20.69597272,1419.5,1419.1,1.74803993]
[1673624019694,4.13483272,1419.4,1419.0,0.066]
[1673624019841,3.60633272,1419.3,1418.9,2.69832427]
[1673624020181,7.63975,1419.4,1419.0,1.74816388]
[1673624020402,9.679907,1419.4,1419.0,1.74816388]
[1673624020575,20.33148972,1419.4,1418.9,3.70016667]
[1673624020783,3.60633272,1419.3,1418.9,1.13416667]
[1673624021003,10.65216272,1419.3,1418.9,0.09287248]
[1673624021206,0.36063327,1419.2,1418.9,0.09287248]
[1673624021814,0.066,1419.3,1418.9,14.18821248]
[1673624022073,3.0,1419.3,1418.9,7.20650248]
[1673624022284,3.0,1419.3,1418.9,14.25421248]
[1673624022609,3.0,1419.3,1418.9,15.29550667]
[1673624022817,3.0,1419.3,1418.9,17.97815426]
[1673624023180,17.066,1419.4,1418.9,17.97815426]
[1673624023506,17.066,1419.4,1418.9,20.47815426]
[1673624023936,0.066,1419.4,1418.9,22.04231186]
[1673624024202,3.08687743,1419.6,1419.0,6.15199419]
[1673624024496,57.64554507,1419.7,1419.1,22.18054419]
[1673624024497,42.52666168,1419.7,1419.1,22.18054419]
[1673624024664,42.52666168,1419.7,1419.3,14.09115]
[1673624024665,34.56047739,1419.7,1419.3,14.09115]
[1673624024878,26.47387739,1419.7,1419.3,22.861985]
[1673624025136,26.47387739,1419.7,1419.3,15.816265]
[1673624025287,26.47387739,1419.7,1419.3,8.770585]
[1673624025498,32.46928272,1419.7,1419.3,8.770585]
[1673624025969,25.42553272,1419.7,1419.3,15.816305]
[1673624026340,21.8192,1419.7,1419.3,15.816305]
[1673624026665,3.0,1419.6,1419.3,15.816305]
[1673624027645,3.0,1419.6,1419.3,1.725115]
[1673624027823,3.0,1419.6,1419.3,1.659115]
[1673624028436,3.0,1419.6,1419.3,11.204785]
[1673624028659,3.0,1419.6,1419.4,1.1204785]
[1673624028974,3.0,1419.6,1419.3,18.316505]
[1673624029174,21.8192,1419.7,1419.3,11.270785]
[1673624029383,0.066,1419.7,1419.4,2.5]
[1673624029697,3.0,1419.7,1419.5,0.25]
[1673624029913,4.77708781,1419.8,1419.5,0.25]
[1673624030261,4.18268781,1419.8,1419.5,7.29472]
[1673624030471,4.18268781,1419.8,1419.5,7.36072]
[1673624030777,4.18268781,1419.8,1419.5,0.316]
[1673624030992,4.18268781,1419.8,1419.5,14.08927]
[1673624031184,4.18268781,1419.8,1419.5,0.066]
[1673624031389,0.5284,1419.7,1419.4,7.0249151]
[1673624031745,3.72874314,1419.8,1419.4,21.1153751]
[1673624031908,3.66274314,1419.8,1419.5,2.5]
[1673624032116,0.13434314,1419.8,1419.6,21.13269]
[1673624032463,0.13434314,1419.8,1419.6,21.19869]
[1673624032793,0.13434314,1419.8,1419.6,30.31192]
[1673624033106,0.13434314,1419.8,1419.7,2.5]
[1673624033424,0.13434314,1419.8,1419.6,2.135]
[1673624033582,0.13434314,1419.8,1419.6,2.069]
[1673624034002,0.13434314,1419.8,1419.6,9.11323]
[1673624034379,0.13434314,1419.8,1419.6,14.15422]
[1673624034947,0.13434314,1419.8,1419.6,7.10999]
[1673624035272,0.13434314,1419.8,1419.6,14.15422]
[1673624036221,0.13434314,1419.8,1419.6,21.19845]
[1673624036629,0.13434314,1419.8,1419.6,14.15422]
[1673624037209,0.13434314,1419.8,1419.6,0.066]
[1673624037380,0.13434314,1419.8,1419.6,7.04418]
[1673624037731,0.13434314,1419.8,1419.6,14.15441]
[1673624037947,0.13434314,1419.8,1419.6,21.19864]
[1673624038256,0.13434314,1419.8,1419.6,24.02293]
[1673624039259,0.13434314,1419.8,1419.6,26.10493]
[1673624039630,0.13434314,1419.8,1419.7,18.17148]
[1673624039863,0.13434314,1419.8,1419.7,15.73748]
[1673624040086,2.86334314,1419.8,1419.7,1.65]
[1673624040385,28.87003693,1419.8,1419.6,0.066]
[1673624040596,28.87003693,1419.8,1419.3,0.066]
[1673624040597,35.65962,1419.7,1419.3,0.066]